bitfinex/quotes_BTCUSD_20251120
["timestamp","ask_amount","ask_price","bid_price","bid_amount"]
[1763671080628,0.01808734,86798.0,86786.0,0.11476708]
[1763671081479,0.01808734,86798.0,86784.0,0.0002529]
[1763671081480,0.01532,86787.0,86784.0,0.0002529]
[1763671081677,0.02779,86785.0,86784.0,0.0002529]
[1763671082083,0.05228,86785.0,86784.0,0.0002529]
[1763671082304,0.01215,86785.0,86784.0,0.0002529]
[1763671082512,0.02851,86785.0,86784.0,0.0002529]
[1763671083080,0.02851,86785.0,86767.0,0.10494497]
[1763671083282,0.01636,86781.0,86767.0,0.10494497]
[1763671083687,0.01636,86781.0,86776.0,0.00025297]
[1763671084080,0.01215,86785.0,86776.0,0.00025297]
[1763671084081,0.19203,86784.0,86776.0,0.00025297]
[1763671084226,0.01636,86777.0,86776.0,0.00025297]
[1763671084431,0.05105,86777.0,86776.0,0.00025297]
[1763671084816,0.088455,86777.0,86776.0,0.00025297]
[1763671085020,0.323,86774.0,86747.0,0.11476708]
[1763671085229,0.08342981,86777.0,86747.0,0.11476708]
[1763671085230,0.02851,86761.0,86747.0,0.11476708]
[1763671085429,0.01215,86761.0,86747.0,0.11476708]
[1763671085610,0.01215,86766.0,86748.0,0.01383317]
[1763671085943,0.01215,86766.0,86747.0,0.11476708]
[1763671085944,0.01215,86766.0,86761.0,0.11476708]
[1763671086318,0.02254,86776.0,86761.0,0.11476708]
[1763671086518,0.01215,86771.0,86762.0,0.01383093]
[1763671086957,0.01215,86777.0,86762.0,0.01383093]
[1763671087874,0.01215,86777.0,86761.0,0.11576708]
[1763671088226,0.01215,86777.0,86761.0,0.11476708]
[1763671088876,0.01215,86762.0,86760.0,0.0004]
[1763671089140,0.01215,86762.0,86761.0,0.11476708]
[1763671089516,0.04660177,86762.0,86761.0,0.11476708]
[1763671089917,0.06914177,86762.0,86761.0,0.11476708]
[1763671090332,0.06914177,86762.0,86761.0,0.08376708]
[1763671091038,0.06914177,86762.0,86761.0,0.08476708]
[1763671091518,0.06914177,86762.0,86761.0,0.00147441]
[1763671091719,0.07605595,86762.0,86761.0,0.00147441]
[1763671091955,0.06914177,86762.0,86761.0,0.00147441]
[1763671092520,0.06914177,86762.0,86761.0,0.00047441]
[1763671093857,0.54692777,86762.0,86761.0,0.00047441]
[1763671094247,0.50775477,86762.0,86761.0,0.00047441]
[1763671094605,0.58795777,86762.0,86761.0,0.00047441]
[1763671094811,0.22730775,86762.0,86761.0,0.00047441]
[1763671096548,0.66507475,86762.0,86761.0,0.00047441]
[1763671096759,0.75533723,86762.0,86761.0,0.00047441]
[1763671096973,0.78763922,86762.0,86761.0,0.00047441]
[1763671097180,1.00253489,86762.0,86761.0,0.00047441]
[1763671097387,0.0079,86732.0,86731.0,0.10364149]
[1763671097620,0.02426,86732.0,86731.0,0.10364149]
[1763671097828,0.02426,86732.0,86731.0,0.10504439]
[1763671098263,0.02426,86732.0,86731.0,0.0014029]
[1763671099495,0.01223023,86745.0,86731.0,0.0014029]
[1763671099496,0.01215,86743.0,86731.0,0.0298229]
[1763671099707,0.01215,86743.0,86733.0,0.11476708]
[1763671099909,0.01215,86743.0,86734.0,0.0138354]
[1763671100554,0.01215,86753.0,86742.0,0.01666]
[1763671100751,0.01215,86753.0,86747.0,0.11476708]
[1763671100943,0.01215,86753.0,86748.0,0.01383317]
[1763671101791,0.02254,86765.0,86748.0,0.02439]
[1763671102065,0.02254,86765.0,86733.0,0.11476708]
[1763671102066,0.02851,86749.0,86733.0,0.11476708]
[1763671102227,0.01636,86748.0,86747.0,0.11476708]
[1763671102426,0.01215,86749.0,86747.0,0.11476708]
[1763671102980,0.01215,86749.0,86748.0,0.001]
[1763671103127,0.01215,86749.0,86747.0,0.11476708]
[1763671103557,0.01215,86749.0,86747.0,0.001]
[1763671103772,0.0389,86748.0,86733.0,0.11476708]
[1763671104168,0.78397439,86743.0,86733.0,0.11476708]
[1763671104373,0.02254,86747.0,86733.0,0.11476708]
[1763671104578,0.01215,86743.0,86733.0,0.09876708]
[1763671104951,0.01215,86743.0,86742.0,0.00060111]
[1763671105479,1.94482744,86743.0,86742.0,0.00060111]
[1763671105651,0.503431,86743.0,86742.0,0.00060111]
[1763671105831,0.525971,86743.0,86742.0,0.00060111]
[1763671106252,0.37405,86743.0,86742.0,0.00260111]
[1763671106460,0.37405,86743.0,86742.0,0.00060111]
[1763671106678,0.3921468,86743.0,86742.0,0.00060111]
[1763671106875,0.3921468,86743.0,86742.0,0.00160111]
[1763671107078,0.3921468,86743.0,86742.0,0.00060111]
[1763671107295,0.7818168,86743.0,86742.0,0.00060111]
[1763671107530,0.7445048,86743.0,86742.0,0.00060111]
[1763671108151,0.3704548,86743.0,86742.0,0.00060111]
[1763671108362,0.0691468,86743.0,86742.0,0.00160111]
[1763671109432,0.8014328,86743.0,86742.0,0.00160111]
[1763671109857,0.88279108,86743.0,86742.0,0.00160111]
[1763671110063,0.8014328,86743.0,86742.0,0.00160111]
[1763671111122,0.81221467,86743.0,86742.0,0.00160111]
[1763671111327,0.8014328,86743.0,86742.0,0.00060111]
[1763671111526,0.01231,86725.0,86724.0,0.10502185]
[1763671111733,0.01231,86725.0,86724.0,0.10510172]
[1763671111981,0.02816,86725.0,86724.0,7.987e-05]
[1763671112344,0.05194,86725.0,86724.0,7.987e-05]
[1763671112555,1.298155,86725.0,86724.0,7.987e-05]
[1763671112761,0.37494,86725.0,86724.0,0.00207987]
[1763671112976,0.37494,86725.0,86724.0,0.00307987]
[1763671112977,0.35116,86725.0,86724.0,0.00307987]
[1763671113386,0.35116,86725.0,86724.0,0.00207987]
[1763671114039,0.37494,86725.0,86724.0,0.00207987]
[1763671114255,0.37494,86725.0,86724.0,7.987e-05]
[1763671114695,0.412434,86725.0,86724.0,0.00107987]
[1763671114920,0.37494,86725.0,86724.0,0.00107987]
[1763671117087,0.37494,86725.0,86724.0,0.00164952]
[1763671118834,0.37494,86725.0,86703.0,0.01176]
[1763671118835,0.34678,86724.0,86703.0,0.01176]
[1763671119031,0.01615,86721.0,86711.0,0.11476708]
[1763671119467,0.01615,86721.0,86716.0,0.00025323]
[1763671119672,0.323,86724.0,86716.0,0.00025323]
[1763671119865,0.01231,86725.0,86717.0,0.01081]
[1763671120102,0.01192,86730.0,86718.0,0.01383795]
[1763671120305,0.03104045,86745.0,86718.0,0.01383795]
[1763671120306,0.658744,86741.0,86731.0,0.01176]
[1763671120448,0.150077,86739.0,86728.0,0.01383636]
[1763671120650,0.5,86739.0,86729.0,0.11476708]
[1763671120924,0.323,86752.0,86729.0,0.11476708]
[1763671120925,0.34678,86747.0,86729.0,0.11476708]
[1763671121064,0.01729186,86746.0,86729.0,0.11476708]
[1763671121260,0.02378,86742.0,86729.0,0.11476708]
[1763671121460,0.02378,86742.0,86729.0,0.1148234]
[1763671121663,0.250901,86739.0,86729.0,0.00105632]
[1763671122091,0.01615,86730.0,86729.0,5.632e-05]
[1763671122285,0.01615,86730.0,86729.0,0.00105632]
[1763671122658,0.01615,86730.0,86729.0,5.632e-05]
[1763671122866,0.03993,86730.0,86729.0,0.00105632]
[1763671123077,0.03993,86730.0,86729.0,0.00205632]
[1763671123437,0.01615,86730.0,86729.0,0.00205632]
[1763671123580,0.03993,86730.0,86729.0,0.00105632]
[1763671123981,0.03878853,86730.0,86729.0,0.00105632]
[1763671124202,0.323,86735.0,86729.0,0.00105632]
[1763671124406,0.5,86747.0,86730.0,0.11476708]
[1763671124566,0.02378,86748.0,86734.0,0.00645]
[1763671124770,0.323,86746.0,86734.0,0.00645]
[1763671124978,0.03622156,86758.0,86735.0,0.11476708]
[1763671125196,0.0015605,86758.0,86748.0,0.78397439]
[1763671125398,0.0015605,86758.0,86749.0,0.05210249]
[1763671125810,0.0015605,86758.0,86741.0,0.323]
[1763671126527,0.0015605,86758.0,86748.0,0.001]
[1763671126938,0.0015605,86758.0,86735.0,0.11476708]
[1763671126939,0.01192,86757.0,86735.0,0.11476708]
[1763671127346,0.01192,86757.0,86748.0,0.002]
[1763671127545,0.01192,86757.0,86741.0,0.001]
[1763671128053,0.01192,86757.0,86748.0,0.002]
[1763671128261,0.14848969,86769.0,86741.0,0.001]
[1763671128478,0.01192,86759.0,86748.0,0.002]
[1763671128840,0.01192,86759.0,86736.0,0.323]
[1763671129046,0.01192,86759.0,86741.0,0.002]
[1763671129583,0.01192,86759.0,86753.0,0.11476708]
[1763671130011,0.01192,86759.0,86748.0,0.001]
[1763671130219,0.01192,86759.0,86749.0,0.11476708]
[1763671130621,0.01192,86759.0,86748.0,0.002]
[1763671130831,0.02378,86758.0,86749.0,0.11476708]
[1763671131680,0.02378,86758.0,86749.0,0.11576708]
[1763671131882,0.02378,86758.0,86749.0,0.11476708]
[1763671132411,0.01615,86750.0,86749.0,0.11576708]
[1763671132963,0.01615,86750.0,86749.0,0.09576708]
[1763671133162,0.02378,86758.0,86749.0,0.09576708]
[1763671133848,0.02378,86776.0,86750.0,0.01383285]
[1763671134013,0.323,86775.0,86750.0,0.01383285]
[1763671134423,0.323,86775.0,86749.0,0.09676708]
[1763671134629,0.323,86769.0,86750.0,0.01383285]
[1763671134982,0.323,86769.0,86764.0,0.11476708]
[1763671135414,0.323,86769.0,86749.0,0.09576708]
[1763671135415,0.01615,86765.0,86750.0,0.001]
[1763671135624,0.01615,86765.0,86763.0,0.11476708]
[1763671136023,0.323,86769.0,86763.0,0.11476708]
[1763671136173,0.323,86769.0,86763.0,0.1148234]
[1763671137013,0.323,86769.0,86763.0,0.1144134]
[1763671137416,0.323,86769.0,86763.0,0.1154134]
[1763671137674,0.323,86769.0,86763.0,0.1144134]
[1763671137987,0.323,86769.0,86763.0,0.1154134]
[1763671138196,0.01192,86771.0,86763.0,0.1154134]
[1763671138789,0.01192,86771.0,86763.0,0.1164134]
[1763671139241,0.01192,86771.0,86763.0,0.1154134]
[1763671139455,0.01192,86771.0,86763.0,0.1144134]
[1763671139868,0.01192,86771.0,86763.0,0.1154134]
[1763671140219,0.01192,86771.0,86763.0,0.0754134]
[1763671140496,0.78397439,86773.0,86763.0,0.0754134]
[1763671140707,0.01192,86814.0,86764.0,0.01383062]
[1763671140708,0.00025301,86766.0,86764.0,0.01383062]
[1763671140903,0.00025301,86766.0,86763.0,0.0754134]
[1763671141512,0.78397439,86773.0,86763.0,0.0754134]
[1763671141513,0.56497991,86773.0,86763.0,0.0754134]
[1763671141905,0.56497991,86773.0,86763.0,0.0764134]
[1763671142498,0.56497991,86773.0,86763.0,0.0754134]
[1763671142904,0.56497991,86773.0,86764.0,0.002]
[1763671143110,0.56497991,86773.0,86763.0,0.0754134]
[1763671143316,0.56497991,86773.0,86763.0,0.0744134]
[1763671143509,0.56497991,86773.0,86763.0,0.0764134]
[1763671143718,0.02455,86779.0,86763.0,0.0764134]
[1763671143925,0.78397439,86773.0,86763.0,0.0764134]
[1763671144124,0.78397439,86773.0,86763.0,0.0744134]
[1763671144549,0.78397439,86773.0,86764.0,0.001]
[1763671144810,0.36483668,86772.0,86764.0,0.001]
[1763671144983,0.07875249,86765.0,86764.0,0.001]
[1763671145400,0.42630249,86765.0,86764.0,0.001]
[1763671146031,0.3742,86765.0,86764.0,0.001]
[1763671146243,0.34965,86765.0,86764.0,0.001]
[1763671146399,0.01139,86766.0,86764.0,0.001]
[1763671146585,0.01526,86765.0,86764.0,0.001]
[1763671146787,0.03981,86765.0,86764.0,0.001]
[1763671146990,0.03981,86765.0,86764.0,0.002]
[1763671147244,0.01526,86765.0,86764.0,0.001]
[1763671147413,0.01139,86766.0,86764.0,0.001]
[1763671147610,0.46802208,86774.0,86765.0,0.11476708]
[1763671147821,0.46802208,86774.0,86751.0,0.323]
[1763671147822,0.01139,86771.0,86751.0,0.28305632]
[1763671148013,0.01139,86771.0,86764.0,0.11476708]
[1763671148254,0.01139,86771.0,86751.0,4.488e-05]
[1763671148444,0.01139,86771.0,86764.0,0.11476708]
[1763671149090,0.01139,86771.0,86764.0,0.11576708]
[1763671149431,0.01139,86771.0,86764.0,0.11476708]
[1763671149648,0.01139,86771.0,86764.0,0.11576708]
[1763671151865,0.01139,86771.0,86765.0,0.11476708]
[1763671152984,0.5,86787.0,86765.0,0.11476708]
[1763671153182,0.46802208,86775.0,86766.0,0.0138303]
[1763671153392,0.46802208,86775.0,86765.0,0.11576708]
[1763671153609,0.00025298,86774.0,86765.0,0.11576708]
[1763671154440,0.01139,86766.0,86765.0,0.001]
[1763671155011,0.01139,86766.0,86757.0,0.01096578]
[1763671155261,0.01139,86766.0,86764.0,0.11476708]
[1763671155692,0.94768714,86774.0,86765.0,0.001]
[1763671155869,0.01164298,86774.0,86765.0,0.002]
[1763671156045,0.01526,86766.0,86765.0,0.001]
[1763671156453,0.03981,86766.0,86765.0,0.001]
[1763671156872,0.323,86773.0,86765.0,0.001]
[1763671157083,0.01526,86766.0,86765.0,0.001]
[1763671157444,0.03981,86766.0,86751.0,4.488e-05]
[1763671157819,0.46802208,86761.0,86751.0,4.488e-05]
[1763671158569,0.46802208,86761.0,86751.0,0.00104488]
[1763671158777,0.46802208,86761.0,86751.0,4.488e-05]
[1763671159173,0.46802208,86761.0,86751.0,0.00104488]
[1763671159374,0.46802208,86761.0,86751.0,4.488e-05]
[1763671159952,0.02455,86771.0,86751.0,0.00104488]
[1763671160166,0.46802208,86761.0,86751.0,0.00104488]
[1763671160790,0.01164298,86774.0,86751.0,0.00104488]
[1763671160791,0.00025298,86774.0,86758.0,0.04128771]
[1763671161005,0.00025298,86774.0,86760.0,0.04128771]
[1763671161215,0.00025298,86774.0,86761.0,0.01383109]
[1763671161404,0.00025298,86774.0,86766.0,0.04128771]
[1763671161543,0.00025298,86774.0,86767.0,0.01383014]
[1763671161744,0.00025298,86774.0,86767.0,0.04128771]
[1763671162043,0.00025298,86774.0,86756.0,0.323]
[1763671162044,0.00025298,86774.0,86766.0,0.04151593]
[1763671162248,0.00025298,86774.0,86761.0,0.002]
[1763671162456,0.46802208,86771.0,86761.0,0.002]
[1763671162750,0.46802208,86771.0,86770.0,0.11476708]
[1763671162950,0.00025298,86774.0,86770.0,0.11476708]
[1763671163348,0.00025298,86774.0,86771.0,0.0138295]
[1763671163572,0.00025298,86774.0,86770.0,0.11476708]
[1763671163753,0.00025298,86774.0,86771.0,0.0138295]
[1763671163966,0.00025298,86774.0,86770.0,0.11476708]
[1763671163967,0.00025298,86774.0,86770.0,0.11576708]
[1763671164909,0.00025298,86774.0,86771.0,0.002]
[1763671165256,0.00025298,86774.0,86770.0,0.11476708]
[1763671165449,0.00025298,86774.0,86770.0,0.11576708]
[1763671165650,0.00025298,86774.0,86770.0,0.11776708]
[1763671165804,0.00025298,86774.0,86770.0,0.11476708]
[1763671166237,0.00025298,86774.0,86771.0,0.001]
[1763671166648,0.00025298,86774.0,86770.0,0.11476708]
[1763671166976,0.00025298,86774.0,86770.0,0.11576708]
[1763671167178,0.00025298,86774.0,86771.0,0.002]
[1763671167380,0.00025298,86774.0,86770.0,0.11576708]
[1763671167704,0.00025298,86774.0,86770.0,0.11676708]
[1763671168030,0.00025298,86774.0,86770.0,0.11576708]
[1763671168241,0.00025298,86774.0,86771.0,0.001]
[1763671168792,0.01526,86772.0,86771.0,0.001]
[1763671168966,1.535829,86772.0,86771.0,0.001]
[1763671169119,1.005118,86772.0,86771.0,0.001]
[1763671169308,0.206099,86770.0,86755.0,0.11476708]
[1763671169514,0.93604416,86765.0,86755.0,0.11482808]
[1763671169760,0.46802208,86765.0,86755.0,0.11482808]
[1763671170168,0.46802208,86765.0,86756.0,0.01383189]
[1763671170482,0.46802208,86765.0,86757.0,0.11476708]
[1763671171637,0.46802208,86765.0,86757.0,0.11576708]
[1763671172927,0.46802208,86765.0,86757.0,0.11676708]
[1763671173137,0.46802208,86765.0,86757.0,0.11576708]
[1763671173557,0.46802208,86765.0,86757.0,0.11676708]
[1763671176350,0.46802208,86765.0,86757.0,0.08776708]
[1763671177121,0.46802208,86765.0,86757.0,0.08676708]
[1763671177323,0.46802208,86765.0,86757.0,0.08576708]
[1763671177526,0.46802208,86765.0,86757.0,0.08676708]
[1763671178006,0.46802208,86765.0,86757.0,0.08776708]
[1763671178207,0.46802208,86765.0,86757.0,0.08676708]
[1763671178404,0.46802208,86765.0,86757.0,0.08776708]
[1763671179094,0.46802208,86765.0,86758.0,0.01383157]
[1763671180158,0.46802208,86765.0,86758.0,0.001]
[1763671180780,0.46802208,86765.0,86758.0,0.002]
[1763671183530,0.46802208,86765.0,86757.0,0.04276708]
[1763671185045,0.46802208,86765.0,86757.0,0.04376708]
[1763671186040,0.46802208,86765.0,86757.0,0.04476708]
[1763671187646,0.00025298,86774.0,86758.0,0.01383157]
[1763671187812,0.46802208,86770.0,86759.0,0.01383141]
[1763671188683,0.46802208,86770.0,86757.0,0.04376708]
[1763671189024,0.46802208,86770.0,86757.0,0.04276708]
[1763671189224,0.46802208,86770.0,86759.0,0.001]
[1763671189856,0.46802208,86770.0,86757.0,0.04276708]
[1763671190218,0.46802208,86770.0,86757.0,0.04376708]
[1763671190453,0.46802208,86770.0,86757.0,0.04276708]
[1763671190606,0.46802208,86770.0,86757.0,0.01576708]
[1763671190799,0.46802208,86770.0,86759.0,0.001]
[1763671191454,0.46802208,86769.0,86759.0,0.001]
[1763671191858,0.46802208,86769.0,86757.0,0.01576708]
[1763671192358,0.46802208,86769.0,86757.0,0.01676708]
[1763671192568,0.46802208,86769.0,86757.0,0.01576708]
[1763671192725,0.46802208,86769.0,86759.0,0.001]
[1763671193625,0.46802208,86769.0,86757.0,0.01576708]
[1763671194053,0.46802208,86769.0,86759.0,0.002]
[1763671194505,0.46802208,86769.0,86759.0,0.001]
[1763671194721,0.01589,86760.0,86759.0,0.001]
[1763671195076,0.03962,86760.0,86759.0,0.001]
[1763671195272,0.03962,86760.0,86757.0,0.001]
[1763671195488,0.02801,86758.0,86757.0,0.001]
[1763671195678,0.02801,86758.0,86757.0,0.002]
[1763671195899,0.05174,86758.0,86757.0,0.001]
[1763671196099,0.05174,86758.0,86755.0,6.1e-05]
[1763671196293,0.01589,86756.0,86755.0,6.1e-05]
[1763671196686,0.03962,86756.0,86755.0,6.1e-05]
[1763671197310,0.323,86766.0,86755.0,6.1e-05]
[1763671197524,0.323,86764.0,86755.0,6.1e-05]
[1763671197863,0.323,86764.0,86737.0,0.01257503]
[1763671198066,0.46802208,86760.0,86753.0,0.11476708]
[1763671198395,0.01212,86772.0,86754.0,0.01383221]
[1763671199193,0.46802208,86764.0,86754.0,0.01383221]
[1763671199414,0.46802208,86764.0,86753.0,0.11476708]
[1763671199612,0.07053221,86763.0,86754.0,0.11476708]
[1763671200016,0.02373,86763.0,86754.0,0.11476708]
[1763671200227,0.93604416,86764.0,86737.0,0.11483318]
[1763671200228,0.01589,86755.0,86737.0,0.11483318]
[1763671200442,0.93604416,86764.0,86737.0,0.11483318]
[1763671200443,0.46802208,86747.0,86737.0,0.11483318]
[1763671200635,0.02801,86738.0,86737.0,6.61e-05]
[1763671201084,0.01212,86744.0,86737.0,6.61e-05]
[1763671201247,0.01212,86744.0,86738.0,0.11476708]
[1763671201572,0.46802208,86747.0,86738.0,0.11476708]
[1763671202615,0.46802208,86747.0,86738.0,0.11576708]
[1763671202790,0.46802208,86748.0,86738.0,0.11476708]
[1763671204259,0.01596,86739.0,86738.0,0.001]
[1763671204648,0.03901,86739.0,86737.0,6.61e-05]
[1763671204947,0.03901,86738.0,86725.0,0.11476708]
[1763671205248,0.01596,86733.0,86725.0,0.11481443]
[1763671205401,0.93604416,86735.0,86725.0,0.11481443]
[1763671205402,0.46802208,86735.0,86725.0,0.11481443]
[1763671205603,0.46802208,86735.0,86725.0,4.735e-05]
[1763671205605,0.93604416,86735.0,86725.0,4.735e-05]
[1763671205804,0.01172,86726.0,86725.0,4.735e-05]
[1763671206005,0.02768,86726.0,86725.0,4.735e-05]
[1763671206618,0.02768,86726.0,86725.0,0.00104735]
[1763671207023,0.02768,86726.0,86725.0,4.735e-05]
[1763671207630,0.746474,86726.0,86725.0,4.735e-05]
[1763671207846,0.769524,86726.0,86725.0,4.735e-05]
[1763671208296,0.769524,86726.0,86725.0,0.00104735]
[1763671208508,0.496795,86726.0,86725.0,4.735e-05]
[1763671208747,0.35068,86726.0,86725.0,4.735e-05]
[1763671209581,0.37373,86726.0,86725.0,4.735e-05]
[1763671210906,0.78511073,86735.0,86725.0,4.735e-05]
[1763671210907,0.01172,86731.0,86725.0,4.735e-05]
[1763671211049,0.00807766,86730.0,86720.0,0.11476708]
[1763671211249,0.00807766,86730.0,86725.0,0.001]
[1763671211475,0.323,86734.0,86725.0,0.001]
[1763671211771,0.78511073,86735.0,86726.0,0.11476708]
[1763671212091,0.78511073,86735.0,86726.0,0.09576708]
[1763671212430,0.4,86800.0,86727.0,0.00480231]
[1763671212431,0.78511073,86760.0,86727.0,0.00480231]
[1763671212698,0.79318839,86740.0,86726.0,0.09576708]
[1763671212896,0.01729325,86739.0,86726.0,0.09676708]
[1763671213076,0.01172,86739.0,86726.0,0.09676708]
[1763671213271,0.02901325,86739.0,86726.0,0.09676708]
[1763671213608,0.04034345,86738.0,86726.0,0.002]
[1763671213904,0.04034345,86738.0,86726.0,0.001]
[1763671214207,0.02305,86737.0,86726.0,0.001]
[1763671214407,0.01729385,86736.0,86726.0,0.001]
[1763671214632,0.33472,86739.0,86727.0,0.11476708]
[1763671214846,0.323,86739.0,86728.0,0.00480074]
[1763671215051,0.323,86739.0,86727.0,0.11476708]
[1763671215803,0.00807766,86740.0,86728.0,0.00480074]
[1763671216002,0.79318839,86750.0,86728.0,0.00480074]
[1763671216202,0.00807766,86740.0,86728.0,0.00480074]
[1763671216426,0.00807766,86740.0,86727.0,0.11576708]
[1763671216427,0.79318839,86740.0,86727.0,0.11576708]
[1763671216746,0.01172,86739.0,86727.0,0.11576708]
[1763671216959,0.323,86749.0,86727.0,0.11576708]
[1763671217169,0.02305,86759.0,86727.0,0.11576708]
[1763671217171,0.01212,86772.0,86727.0,0.11576708]
[1763671217172,0.78511073,86760.0,86728.0,0.0047977]
[1763671217448,0.00807766,86750.0,86724.0,0.00025321]
[1763671217645,0.00807766,86750.0,86728.0,0.001]
[1763671217879,0.323,86759.0,86724.0,0.00025321]
[1763671218100,0.00807766,86750.0,86724.0,0.00025321]
[1763671218316,0.79318839,86750.0,86741.0,0.11476708]
[1763671219140,0.01172,86759.0,86741.0,0.08176708]
[1763671219346,0.33107766,86750.0,86727.0,0.11576708]
[1763671219548,0.33107766,86750.0,86741.0,0.11476708]
[1763671219761,0.33107766,86750.0,86741.0,0.11576708]
[1763671220522,0.33107766,86750.0,86741.0,0.11676708]
[1763671221060,0.78511073,86751.0,86741.0,0.11576708]
[1763671221256,0.01729106,86750.0,86741.0,0.11576708]
[1763671221815,0.02768,86742.0,86741.0,0.001]
[1763671221961,0.78511073,86751.0,86741.0,0.001]
[1763671222747,0.02768,86742.0,86741.0,0.001]
[1763671222962,0.01172,86742.0,86741.0,0.001]
[1763671223380,0.02768,86742.0,86724.0,0.00025321]
[1763671223581,0.02768,86725.0,86724.0,0.00025321]
[1763671224143,0.05073,86725.0,86724.0,0.00025321]
[1763671224696,0.0831411,86746.0,86724.0,0.00025321]
[1763671224697,0.05210249,86746.0,86724.0,0.00025321]
[1763671224918,0.01172,86749.0,86725.0,0.11476708]
[1763671225330,0.12232953,86748.0,86725.0,0.11476708]
[1763671225553,0.04034146,86748.0,86725.0,0.11476708]
[1763671225911,0.01172,86749.0,86726.0,0.00274027]
[1763671226101,0.01172,86749.0,86739.0,0.11476708]
[1763671226245,0.01172,86749.0,86725.0,0.09150735]
[1763671226639,0.01172,86749.0,86739.0,0.11476708]
[1763671227267,0.01172,86749.0,86740.0,0.11476708]
[1763671227447,0.02901126,86749.0,86725.0,0.09150735]
[1763671227650,0.01172,86749.0,86739.0,0.11476708]
[1763671227857,0.01172,86766.0,86740.0,0.00205297]
[1763671228062,0.5,86778.0,86756.0,0.11476708]
[1763671228405,0.323,86777.0,86756.0,0.11476708]
[1763671228686,0.5,86778.0,86756.0,0.11476708]
[1763671228687,0.01172,86776.0,86756.0,0.11476708]
[1763671228901,0.01172,86785.0,86770.0,0.11476708]
[1763671228902,0.01172,86782.0,86770.0,0.11476708]
[1763671229222,0.78511073,86790.0,86770.0,0.1148807]
[1763671229586,0.78551073,86820.0,86770.0,0.1148807]
[1763671229587,0.0004,86820.0,86784.0,0.11476708]
[1763671229774,0.01172,86803.0,86784.0,0.11476708]
[1763671230102,0.01727951,86808.0,86784.0,0.11476708]
[1763671230334,0.01215386,86820.0,86784.0,0.11476708]
[1763671230553,0.78511073,86810.0,86784.0,0.11476708]
[1763671230775,0.51727931,86809.0,86784.0,0.11476708]
[1763671230992,0.5,86809.0,86784.0,0.11476708]
[1763671231208,0.175234,86809.0,86784.0,0.11476708]
[1763671231409,0.175234,86809.0,86799.0,0.11476708]
[1763671231410,0.5,86809.0,86799.0,0.11476708]
[1763671231640,0.01272,86816.0,86799.0,0.11476708]
[1763671231842,0.78511073,86810.0,86799.0,0.11476708]
[1763671232307,0.01727931,86809.0,86799.0,0.11476708]
[1763671232549,0.78511073,86810.0,86799.0,0.11476708]
[1763671232766,0.00041624,86809.0,86799.0,0.11476708]
[1763671233431,0.01769555,86809.0,86799.0,0.04476707]
[1763671233638,0.04114555,86809.0,86784.0,0.11476708]
[1763671233870,0.78511073,86800.0,86784.0,0.11476708]
[1763671234073,0.78511073,86800.0,86770.0,0.11476708]
[1763671234074,0.0172813,86799.0,86785.0,0.11476708]
[1763671234749,0.174094,86808.0,86785.0,0.11476708]
[1763671234951,0.50041624,86809.0,86785.0,0.11476708]
[1763671234952,0.78511073,86800.0,86785.0,0.11476708]
[1763671235173,0.78511073,86800.0,86770.0,0.11476708]
[1763671235174,0.00053749,86786.0,86770.0,0.11476708]
[1763671235393,0.0172813,86799.0,86770.0,0.11476708]
[1763671235394,0.78511073,86790.0,86770.0,0.11476708]
[1763671235863,0.01728329,86789.0,86770.0,0.11476708]
[1763671236092,0.01728329,86789.0,86756.0,0.11476708]
[1763671236093,0.78511073,86780.0,86772.0,0.11476708]
[1763671237403,0.01166,86784.0,86772.0,0.1148807]
[1763671237816,0.01573,86773.0,86772.0,0.00011362]
[1763671238044,0.01728488,86781.0,86772.0,0.00111362]
[1763671238294,0.01728488,86781.0,86773.0,0.11476708]
[1763671238486,0.78511073,86782.0,86773.0,0.11476708]
[1763671238638,0.78511073,86782.0,86772.0,0.00011362]
[1763671238639,0.01728488,86781.0,86772.0,0.00011362]
[1763671238834,0.01728488,86781.0,86772.0,0.00111362]
[1763671239044,0.01728488,86781.0,86773.0,0.11476708]
[1763671239242,0.01728488,86781.0,86772.0,0.00011362]
[1763671239243,0.01573,86773.0,86772.0,0.00011362]
[1763671239616,0.03918,86773.0,86772.0,0.00011362]
[1763671239885,0.678229,86773.0,86772.0,0.00011362]
[1763671240065,0.489424,86773.0,86772.0,0.00011362]
[1763671240641,0.34645,86772.0,86753.0,0.11476708]
[1763671240804,0.34645,86772.0,86753.0,0.11490318]
[1763671241177,0.78511073,86770.0,86753.0,0.11490318]
[1763671241871,0.78511073,86770.0,86754.0,0.00204143]
[1763671242075,0.00025296,86777.0,86754.0,0.00204143]
[1763671242429,0.00025296,86777.0,86753.0,0.11490318]
[1763671242430,0.00025296,86777.0,86755.0,0.11476708]
[1763671242431,0.78511073,86764.0,86755.0,0.11476708]
[1763671242634,0.78511073,86770.0,86755.0,0.11476708]
[1763671242852,0.01166,86765.0,86755.0,0.11476708]
[1763671243207,0.00025296,86777.0,86755.0,0.11476708]
[1763671243409,0.00025296,86777.0,86776.0,0.11476708]
[1763671243740,0.00025296,86777.0,86776.0,0.11679839]
[1763671244003,0.00025296,86777.0,86776.0,0.11476708]
[1763671244965,0.00025296,86777.0,86756.0,0.323]
[1763671245361,0.00025296,86777.0,86769.0,0.11476708]
[1763671245571,0.00025296,86777.0,86776.0,0.001]
[1763671245784,0.00025296,86777.0,86769.0,0.11476708]
[1763671246203,0.00025296,86777.0,86770.0,0.00203369]
[1763671246827,0.00025296,86777.0,86776.0,0.001]
[1763671247253,0.03943296,86777.0,86776.0,0.001]
[1763671247720,0.34645,86776.0,86728.0,0.04144566]
[1763671247909,0.78511073,86760.0,86759.0,0.11476708]
[1763671248120,0.78511073,86769.0,86759.0,0.11476708]
[1763671248324,0.01166,86762.0,86759.0,0.11476708]
[1763671249161,0.01166,86762.0,86741.0,0.60013607]
[1763671249386,0.78511073,86760.0,86741.0,0.60013607]
[1763671249618,0.78511073,86760.0,86759.0,0.001]
[1763671249832,0.01166,86762.0,86759.0,0.001]
[1763671250038,0.01573,86760.0,86759.0,0.002]
[1763671250257,0.01573,86760.0,86741.0,0.60013607]
[1763671250476,0.01573,86760.0,86741.0,0.60113607]
[1763671250477,0.78511073,86751.0,86741.0,0.60113607]
[1763671250687,0.78511073,86751.0,86741.0,0.60213607]
[1763671250899,0.323,86768.0,86741.0,0.60113607]